fUSD/lending_fUSD_20241116
["ID","MTS","AMOUNT","RATE_DAILY","PERIOD"]
[342343881,1731759057411,-500.0,9.999e-05,2]
[342343882,1731759057419,-500.0,9.999e-05,2]
[342343883,1731759057428,-500.0,9.999e-05,2]
[342343884,1731759057438,-500.0,9.999e-05,2]
[342343885,1731759057447,-500.0,9.999e-05,2]
[342343886,1731759057457,-500.0,9.999e-05,2]
[342343887,1731759057466,-500.0,9.999e-05,2]
[342343888,1731759057474,-500.0,9.999e-05,2]
[342343889,1731759057484,-500.0,9.999e-05,2]
[342343890,1731759057493,-500.0,9.999e-05,2]
[342343891,1731759057502,-230.13514197,9.999e-05,2]
[342343892,1731759057513,-500.0,9.999e-05,2]
[342343893,1731759057522,-500.0,9.999e-05,2]
[342343894,1731759057531,-456.04331541,9.999e-05,2]
[342343895,1731759057540,-304.77,9.999e-05,2]
[342343896,1731759057548,-819.2,9.999e-05,2]
[342343897,1731759057558,-819.2,9.999e-05,2]
[342343898,1731759057567,-819.2,9.999e-05,2]
[342343899,1731759057575,-819.2,9.999e-05,2]
[342343900,1731759057586,-819.2,9.999e-05,2]
[342343901,1731759057595,-819.2,9.999e-05,2]
[342343902,1731759057604,-819.2,9.999e-05,2]
[342343903,1731759057613,-819.2,9.999e-05,2]
[342343904,1731759057622,-819.2,9.999e-05,2]
[342343905,1731759057635,-819.2,9.999e-05,2]
[342343906,1731759057644,-819.2,9.999e-05,2]
[342343907,1731759057653,-819.2,9.999e-05,2]
[342343908,1731759057662,-819.2,9.999e-05,2]
[342343909,1731759057672,-819.2,9.999e-05,2]
[342343910,1731759057683,-819.2,9.999e-05,2]
[342343911,1731759057692,-819.2,9.999e-05,2]
[342343912,1731759057702,-819.2,9.999e-05,2]
[342343913,1731759057711,-819.2,9.999e-05,2]
[342343914,1731759057720,-819.2,9.999e-05,2]
[342343915,1731759057730,-819.41116187,9.999e-05,2]
[342343916,1731759057739,-500.0,9.999e-05,2]
[342343917,1731759057748,-500.0,9.999e-05,2]
[342343918,1731759057757,-500.0,9.999e-05,2]
[342343919,1731759057767,-202.0,9.999e-05,2]
[342343920,1731759057776,-581.42,9.999e-05,2]
[342343921,1731759057785,-571.83998797,9.999e-05,2]
[342343922,1731759057794,-500.0,9.999e-05,2]
[342343923,1731759057803,-500.0,9.999e-05,2]
[342343924,1731759057812,-500.0,9.999e-05,2]
[342343925,1731759057821,-565.776,9.999e-05,2]
[342343926,1731759057830,-1255.0,9.999e-05,2]
[342343927,1731759057840,-1992.0,9.999e-05,2]
[342343928,1731759057849,-628.0,9.999e-05,2]
[342343929,1731759057860,-1924.0,9.999e-05,2]
[342343930,1731759057869,-559.0,9.999e-05,2]
[342343931,1731759057879,-3745.0,9.999e-05,2]
[342343932,1731759057890,-814.0,9.999e-05,2]
[342343933,1731759057900,-1259.0,9.999e-05,2]
[342343934,1731759057909,-3488.0,9.999e-05,2]
[342343935,1731759057918,-912.0,9.999e-05,2]
[342343936,1731759057928,-5164.09793393,0.0001,2]
[342343937,1731759057938,-241139.55624925,0.0001,2]
[342343938,1731759057947,-2796758.11569643,0.0001,2]
[342343939,1731759058295,-3457.4486674,0.0001,2]
[342343940,1731759058307,-16016.04800034,0.0001,2]
[342343941,1731759058318,-39015.08697493,0.0001,2]
[342343942,1731759058330,-128164.63555649,0.0001,2]
[342343943,1731759058378,-2383.71805155,0.0001,2]
[342343944,1731759058395,-2837.48048642,0.0001,2]
[342343945,1731759058555,-885.27166989,9.799e-05,2]
[342343946,1731759058566,-2499.58000002,9.799e-05,2]
[342343947,1731759058581,-1364.10023255,9.799e-05,2]
[342343948,1731759058594,-7597.9,9.799e-05,2]
[342343949,1731759058614,-3231.57824768,9.799e-05,2]
[342343950,1731759058623,-16575.91151784,0.0001,2]
[342343951,1731759058639,-16163.3801469,0.0001,2]
[342343952,1731759058651,-785.56974247,0.0001,2]
[342343953,1731759058662,-3154.91932916,0.0001,2]
[342343954,1731759058771,-188098.06398189,0.0001,2]
[342343955,1731759058782,-5012.10131632,0.0001,2]
[342343956,1731759058793,-1089.10690577,0.0001,2]
[342343957,1731759058804,-1935.89497173,0.0001,2]
[342343958,1731759058815,-284.5023455,0.0001,2]
[342343959,1731759058826,-407.54407,0.0001,2]
[342343960,1731759058837,-68161.29829999,0.0001,2]
[342343961,1731759058854,-7008.01625408,0.0001,2]
[342343962,1731759058865,-5621.84587136,0.0001,2]
[342343963,1731759058877,-1576.5613478,0.0001,2]
[342343964,1731759058896,-4535.77417476,0.0001,2]
[342343965,1731759058906,-48729.15821746,0.0001,2]
[342343966,1731759059012,-500.0,9.995e-05,2]
[342343967,1731759059022,-438.94279654,9.996e-05,2]
[342343968,1731759059032,-13.09158516,0.0001,2]
[342343969,1731759059043,-182331.91623554,0.0001,2]
[342343970,1731759059057,-70634.69811626,0.0001,2]
[342343971,1731759059068,-792.97099047,0.0001,2]
[342343972,1731759059079,-5687.37915259,0.0001,2]
[342343973,1731759059089,-19059.9975,0.0001,2]
[342343974,1731759059100,-780.1500225,0.0001,2]
[342343975,1731759059202,166.8573352,8.8e-05,2]
[342343976,1731759212146,1137.14,8.219e-05,2]
[342343978,1731759921866,1080.28,8.219e-05,2]
[342343979,1731759940143,-176.18,8.87e-05,2]
[342343980,1731759940163,-198.10995073,8.906e-05,2]
[342343981,1731759957455,1572.16483008,6.94e-05,2]
[342343982,1731759973914,158.8,8.472e-05,2]
[342343983,1731760031268,200.0,8.43e-05,2]
[342343984,1731760040099,-176.18,8.873e-05,2]
[342343985,1731760040120,-176.18,8.875e-05,2]
[342343986,1731760040141,-176.18,8.877e-05,2]
[342343987,1731760040162,-176.18,8.88e-05,2]
[342343988,1731760040185,-176.18,8.882e-05,2]
[342343989,1731760040206,-176.18,8.884e-05,2]
[342343990,1731760040227,-176.18,8.887e-05,2]
[342343991,1731760040249,-176.18,8.889e-05,2]
[342343992,1731760040274,-176.18,8.891e-05,2]
[342343993,1731760040295,-176.18,8.893e-05,2]
[342343994,1731760040316,-176.18,8.896e-05,2]
[342343995,1731760040338,-176.18,8.898e-05,2]
[342343996,1731760040359,-176.18,8.9e-05,2]
[342343997,1731760040380,-176.18,8.903e-05,2]
[342343998,1731760040400,-176.18,8.905e-05,2]
[342343999,1731760040420,-801.89004927,8.906e-05,2]
[342344000,1731760040441,-176.18,8.907e-05,2]
[342344001,1731760040462,-176.18,8.91e-05,2]
[342344002,1731760040482,-200.98,8.91e-05,2]
[342344003,1731760040505,-176.18,8.912e-05,2]
[342344004,1731760040525,-204.01,8.914e-05,2]
[342344005,1731760040546,-176.18,8.914e-05,2]
[342344006,1731760040571,-300.0,8.922e-05,2]
[342344007,1731760040592,-9397.26966499,8.923e-05,2]
[342344008,1731760088241,150.991,0.0002,60]
[342344025,1731760150125,-1073.6695,8.793e-05,2]
[342344026,1731760150148,-300.0,8.794e-05,2]
[342344027,1731760150171,-3130.75558559,8.795e-05,2]
[342344035,1731760158111,-20769.24441441,8.795e-05,2]
[342344036,1731760158132,-1251.4,8.799e-05,2]
[342344037,1731760158154,-945.47971868,8.804e-05,2]
[342344038,1731760173094,-554.52028132,8.804e-05,2]
[342344039,1731760173118,-250.0,8.926e-05,2]
[342344040,1731760173140,-150.0,8.93e-05,2]
[342344041,1731760173164,-552.90591868,8.93e-05,2]
[342344070,1731760231586,-72.09408132,8.93e-05,2]
[342344071,1731760231595,-1323.38332205,9e-05,2]
[342344072,1731760231604,-200.0,9.1e-05,3]
[342344073,1731760231613,-200.0,9.6e-05,2]
[342344074,1731760231622,-200.0,9.6e-05,2]
[342344075,1731760231632,-3512.9115,9.7e-05,2]
[342344076,1731760231641,-765.4996,9.7e-05,2]
[342344077,1731760231650,-12757.3833,9.7e-05,2]
[342344078,1731760231661,-150.0,9.74e-05,2]
[342344079,1731760231671,-150.0,9.741e-05,2]
[342344080,1731760231679,-150.0,9.743e-05,2]
[342344081,1731760231690,-150.0,9.75e-05,2]
[342344082,1731760231699,-150.0,9.754e-05,2]
[342344083,1731760231707,-150.0,9.755e-05,2]
[342344084,1731760231717,-150.0,9.756e-05,2]
[342344085,1731760231726,-150.0,9.765e-05,2]
[342344086,1731760231735,-150.0,9.776e-05,2]
[342344087,1731760231743,-150.0,9.78e-05,2]
[342344088,1731760231752,-150.0,9.781e-05,2]
[342344089,1731760231762,-150.0,9.787e-05,2]
[342344090,1731760231771,-150.0,9.788e-05,2]
[342344091,1731760231780,-150.0,9.794e-05,2]
[342344092,1731760231789,-500.0,9.799e-05,2]
[342344093,1731760231798,-500.0,9.799e-05,2]
[342344094,1731760231808,-5339.01942531,9.8e-05,2]
[342344095,1731760231819,-663.95658174,9.8e-05,2]
[342344096,1731760231838,-297.73709295,9.8e-05,2]
[342344097,1731760231847,-150.0,9.824e-05,2]
[342344098,1731760231856,-150.0,9.831e-05,2]
[342344099,1731760231865,-150.0,9.839e-05,2]
[342344100,1731760231874,-150.0,9.842e-05,2]
[342344101,1731760231883,-150.0,9.852e-05,2]
[342344102,1731760231892,-228.07335539,9.853e-05,2]
[342344103,1731760231903,-500.0,9.853e-05,2]
[342344104,1731760231914,-150.0,9.864e-05,2]
[342344105,1731760231923,-150.0,9.869e-05,2]
[342344106,1731760231932,-150.0,9.872e-05,2]
[342344107,1731760231942,-500.0,9.879e-05,2]
[342344108,1731760231952,-500.0,9.879e-05,2]
[342344109,1731760231961,-500.0,9.879e-05,2]
[342344110,1731760231971,-500.0,9.879e-05,2]
[342344111,1731760231980,-500.0,9.879e-05,2]
[342344112,1731760231990,-500.0,9.879e-05,2]
[342344113,1731760231999,-500.0,9.879e-05,2]
[342344114,1731760232008,-255.45641117,9.879e-05,2]
[342344115,1731760232017,-455.09978657,9.879e-05,2]
[342344116,1731760234558,-44.90021343,9.879e-05,2]
[342344117,1731760234568,-398.37626222,9.879e-05,2]
[342344118,1731760234578,-500.0,9.879e-05,2]
[342344119,1731760234587,-500.0,9.879e-05,2]
[342344120,1731760234596,-520.57,9.879e-05,2]
[342344121,1731760234606,-520.57,9.879e-05,2]
[342344122,1731760234615,-520.57,9.879e-05,2]
[342344123,1731760234624,-520.57,9.879e-05,2]
[342344124,1731760234634,-520.57,9.879e-05,2]
[342344140,1731760234872,-520.57,9.879e-05,2]
[342344142,1731760234882,-520.57,9.879e-05,2]
[342344144,1731760234891,-520.57,9.879e-05,2]
[342344146,1731760234906,-500.0,9.879e-05,2]
[342344148,1731760234916,-500.0,9.879e-05,2]
[342344150,1731760234925,-500.0,9.879e-05,2]
[342344152,1731760234936,-500.0,9.879e-05,2]
[342344154,1731760234946,-500.0,9.879e-05,2]
[342344156,1731760234955,-202.0,9.879e-05,2]
[342344158,1731760234965,-272.87195551,9.879e-05,2]
[342344160,1731760234976,-500.0,9.879e-05,2]
[342344162,1731760234986,-148.98890628,9.879e-05,2]
[342344164,1731760234999,-351.01109372,9.879e-05,2]
[342344166,1731760235010,-500.0,9.879e-05,2]
[342344168,1731760235019,-500.0,9.879e-05,2]
[342344170,1731760235028,-500.0,9.879e-05,2]
[342344172,1731760235038,-500.0,9.879e-05,2]
[342344173,1731760235047,-509.49608375,9.879e-05,2]
[342344176,1731760235056,-500.0,9.879e-05,2]
[342344178,1731760235065,-562.98770479,9.879e-05,2]
[342344179,1731760235075,-500.0,9.879e-05,2]
[342344181,1731760235085,-500.0,9.879e-05,2]
[342344183,1731760235094,-500.0,9.879e-05,2]
[342344185,1731760235103,-500.0,9.879e-05,2]
[342344187,1731760235112,-441.37311774,9.879e-05,2]
[342344221,1731760235426,-58.62688226,9.879e-05,2]
[342344223,1731760235435,-500.0,9.879e-05,2]
[342344225,1731760235445,-501.59205066,9.879e-05,2]
[342344227,1731760235454,-501.5465678,9.879e-05,2]
[342344229,1731760235463,-500.0,9.879e-05,2]
[342344231,1731760235472,-16107.9862496,9.88e-05,2]
[342344233,1731760235484,-1229.60575675,9.88e-05,2]
[342344236,1731760235496,-960.04680996,9.88e-05,2]
[342344238,1731760235511,-3211.06228099,9.88e-05,2]
[342344448,1731760237660,-500.0,9.879e-05,2]
[342344450,1731760237669,-500.0,9.879e-05,2]
[342344452,1731760237678,-557.21,9.879e-05,2]
[342344454,1731760237688,-500.0,9.879e-05,2]
[342344456,1731760237697,-2034468.7122559,9.88e-05,2]
[342344459,1731760237707,-150.0,9.889e-05,2]
[342344461,1731760237716,-150.0,9.889e-05,2]
[342344463,1731760237725,-500.0,9.896e-05,2]
[342344465,1731760237734,-1000.0,9.899e-05,2]
[342344467,1731760237743,-2264.2907,9.899e-05,2]
[342344468,1731760237753,-520.57,9.899e-05,2]
[342344470,1731760237762,-222438.19217381,9.9e-05,2]
[342344472,1731760237771,-150.0,9.903e-05,2]
[342344474,1731760237781,-150.0,9.919e-05,2]
[342344476,1731760237791,-150.0,9.925e-05,2]
[342344478,1731760237801,-150.0,9.937e-05,2]
[342344480,1731760237810,-150.0,9.95e-05,2]
[342344482,1731760237820,-150.0,9.963e-05,2]
[342344484,1731760237830,-150.0,9.971e-05,2]
[342344485,1731760237839,-505.00873855,9.973e-05,2]
[342344487,1731760237849,-150.0,9.973e-05,2]
[342344489,1731760237859,-242.6504941,9.988e-05,2]
[342344491,1731760237870,-150.0,9.99e-05,2]
[342344493,1731760237878,-230.0933415,9.993e-05,2]
[342344495,1731760237888,-217.536189,9.993e-05,2]
[342344497,1731760237905,-204.9790365,9.993e-05,2]
[342344499,1731760237914,-500.0,9.995e-05,2]
[342344501,1731760237924,-660.19,9.995e-05,2]
[342344503,1731760237933,-500.0,9.995e-05,2]
[342344505,1731760237944,-555.56,9.995e-05,2]
[342344507,1731760237953,-500.0,9.995e-05,2]
[342344509,1731760237963,-500.0,9.995e-05,2]
[342344511,1731760237972,-503.25515646,9.995e-05,2]
[342344512,1731760237983,-500.0,9.995e-05,2]
[342344515,1731760237992,-500.0,9.995e-05,2]
[342344517,1731760238002,-500.0,9.995e-05,2]
[342344518,1731760238011,-500.0,9.995e-05,2]
[342344520,1731760238020,-500.0,9.995e-05,2]
[342344523,1731760238030,-500.0,9.995e-05,2]
[342344524,1731760238039,-500.0,9.995e-05,2]
[342344526,1731760238048,-500.0,9.995e-05,2]
[342344528,1731760238058,-500.0,9.995e-05,2]
[342344531,1731760238067,-500.0,9.996e-05,2]
[342344533,1731760238077,-660.19,9.996e-05,2]
[342344535,1731760238086,-500.0,9.996e-05,2]
[342344537,1731760238095,-555.56,9.996e-05,2]
[342344538,1731760238104,-500.0,9.996e-05,2]
[342344540,1731760238114,-500.0,9.996e-05,2]
[342344542,1731760238123,-500.0,9.996e-05,2]
[342344544,1731760238132,-500.0,9.996e-05,2]
[342344546,1731760238141,-759.228,9.996e-05,2]
[342344548,1731760238151,-500.0,9.996e-05,2]
[342344550,1731760238163,-500.0,9.996e-05,2]
[342344552,1731760238172,-500.0,9.996e-05,2]
[342344554,1731760238182,-500.0,9.996e-05,2]
[342344556,1731760238192,-500.0,9.996e-05,2]
[342344558,1731760238201,-26384.74376672,9.997e-05,2]
[342344560,1731760238211,-500.00000001,9.998e-05,2]
[342344562,1731760238223,-500.0,9.998e-05,2]
[342344564,1731760238232,-500.0,9.998e-05,2]
[342344567,1731760238241,-500.0,9.998e-05,2]
[342344569,1731760238251,-504.33140162,9.998e-05,2]
[342344570,1731760238262,-500.0,9.998e-05,2]
[342344572,1731760238271,-500.0,9.998e-05,2]
[342344574,1731760238280,-500.0,9.998e-05,2]
[342344576,1731760238289,-500.0,9.998e-05,2]
[342344579,1731760238298,-500.0,9.998e-05,2]
[342344582,1731760238307,-500.0,9.998e-05,2]
[342344585,1731760238317,-500.0,9.998e-05,2]
[342344588,1731760238326,-150.0,9.998e-05,2]
[342344590,1731760238335,-453.3184867,9.998e-05,2]
[342344592,1731760238343,-522.47747181,9.998e-05,2]
[342344594,1731760238352,-500.0,9.998e-05,2]
[342344596,1731760238362,-150.0,9.998e-05,2]
[342344598,1731760238371,-419.34109855,9.998e-05,2]
[342344600,1731760238380,-520.30306209,9.998e-05,2]
[342344602,1731760238391,-186.42,9.998e-05,2]
[342344604,1731760238401,-511.77500702,9.998e-05,2]
[342344606,1731760238413,-500.0,9.998e-05,2]
[342344608,1731760238422,-504.66960777,9.998e-05,2]
[342344610,1731760238432,-500.0,9.998e-05,2]
[342344612,1731760238441,-500.0,9.998e-05,2]
[342344614,1731760238450,-500.0,9.998e-05,2]
[342344616,1731760238459,-500.0,9.998e-05,2]
[342344618,1731760238469,-500.0,9.998e-05,2]
[342344620,1731760238479,-500.0,9.998e-05,2]
[342344622,1731760238488,-506.01327779,9.998e-05,2]
[342344624,1731760238497,-500.0,9.998e-05,2]
[342344626,1731760238506,-500.0,9.998e-05,2]
[342344628,1731760238515,-501.3433888,9.998e-05,2]
[342344630,1731760238524,-500.0,9.998e-05,2]
[342344631,1731760238533,-505.14,9.998e-05,2]
[342344632,1731760238542,-500.0,9.998e-05,2]
[342344633,1731760238551,-518.37,9.998e-05,2]
[342344634,1731760238560,-500.0,9.998e-05,2]
[342344635,1731760238569,-500.0,9.998e-05,2]
[342344636,1731760238578,-500.0,9.998e-05,2]
[342344637,1731760238588,-610.1,9.998e-05,2]
[342344638,1731760238598,-500.0,9.998e-05,2]
[342344639,1731760238607,-526.04172149,9.998e-05,2]
[342344640,1731760238616,-1853.03,9.998e-05,2]
[342344641,1731760238625,-500.0,9.998e-05,2]
[342344642,1731760238635,-500.0,9.998e-05,2]
[342344643,1731760238644,-257.33,9.998e-05,2]
[342344644,1731760238655,-500.0,9.998e-05,2]
[342344645,1731760238664,-500.0,9.998e-05,2]
[342344646,1731760238673,-331.18,9.998e-05,2]
[342344647,1731760238683,-520.57,9.998e-05,2]
[342344648,1731760238692,-520.57,9.998e-05,2]
[342344649,1731760238702,-716.8,9.998e-05,2]
[342344650,1731760238711,-482.1,9.998e-05,2]
[342344651,1731760238720,-500.0,9.998e-05,2]
[342344652,1731760238729,-547.07879025,9.998e-05,2]
[342344653,1731760238739,-529.20981505,9.998e-05,2]
[342344654,1731760238748,-500.0,9.998e-05,2]
[342344655,1731760238758,-500.0,9.999e-05,2]
[342344657,1731760238767,-500.0,9.999e-05,2]
[342344659,1731760238777,-500.0,9.999e-05,2]
[342344661,1731760238786,-500.0,9.999e-05,2]
[342344663,1731760238795,-610.93636396,9.999e-05,2]
[342344665,1731760238804,-660.19,9.999e-05,2]
[342344667,1731760238814,-660.19,9.999e-05,2]
[342344669,1731760238823,-660.19,9.999e-05,2]
[342344671,1731760238832,-660.19,9.999e-05,2]
[342344673,1731760238840,-660.19,9.999e-05,2]
[342344675,1731760238850,-660.19,9.999e-05,2]
[342344677,1731760238860,-660.19,9.999e-05,2]
[342344679,1731760238871,-660.19,9.999e-05,2]
[342344681,1731760238881,-660.19,9.999e-05,2]
[342344683,1731760238890,-660.19,9.999e-05,2]
[342344685,1731760238900,-660.19,9.999e-05,2]
[342344687,1731760238917,-660.19,9.999e-05,2]
[342344689,1731760238926,-660.19,9.999e-05,2]
[342344691,1731760238935,-660.19,9.999e-05,2]
[342344693,1731760238944,-660.19,9.999e-05,2]
[342344695,1731760238955,-660.19,9.999e-05,2]
[342344697,1731760238965,-660.19,9.999e-05,2]
[342344699,1731760238974,-660.19,9.999e-05,2]
[342344701,1731760238984,-660.19,9.999e-05,2]
[342344703,1731760238994,-660.19,9.999e-05,2]
[342344705,1731760239003,-660.19,9.999e-05,2]
[342344707,1731760239012,-660.21540353,9.999e-05,2]
[342344709,1731760239021,-500.0,9.999e-05,2]
[342344711,1731760239031,-218.15002723,9.999e-05,2]
[342344712,1731760239040,-500.0,9.999e-05,2]
[342344714,1731760239050,-500.0,9.999e-05,2]
[342344716,1731760239059,-500.0,9.999e-05,2]
[342344718,1731760239068,-500.0,9.999e-05,2]
[342344720,1731760239078,-500.0,9.999e-05,2]
[342344722,1731760239087,-500.0,9.999e-05,2]
[342344724,1731760239097,-507.11928827,9.999e-05,2]
[342344726,1731760239106,-500.0,9.999e-05,2]
[342344728,1731760239115,-225.38031902,9.999e-05,2]
[342344730,1731760239125,-555.56,9.999e-05,2]
[342344732,1731760239134,-555.56,9.999e-05,2]
[342344734,1731760239143,-555.56,9.999e-05,2]
[342344736,1731760239151,-555.56,9.999e-05,2]
[342344738,1731760239161,-555.56,9.999e-05,2]
[342344740,1731760239171,-555.56,9.999e-05,2]
[342344742,1731760239180,-555.56,9.999e-05,2]
[342344744,1731760239189,-555.56,9.999e-05,2]
[342344746,1731760239203,-555.56,9.999e-05,2]
[342344748,1731760239212,-555.56,9.999e-05,2]
[342344750,1731760239221,-500.0,9.999e-05,2]
[342344752,1731760239231,-555.56,9.999e-05,2]
[342344754,1731760239240,-500.0,9.999e-05,2]
[342344756,1731760239249,-555.56,9.999e-05,2]
[342344758,1731760239258,-579.11387222,9.999e-05,2]
[342344760,1731760239267,-555.56,9.999e-05,2]
[342344762,1731760239277,-555.56,9.999e-05,2]
[342344764,1731760239286,-555.56,9.999e-05,2]
[342344766,1731760239295,-555.56,9.999e-05,2]
[342344768,1731760239304,-555.56,9.999e-05,2]
[342344770,1731760239313,-555.56,9.999e-05,2]
[342344772,1731760239322,-185.1134661,9.999e-05,2]
[342344774,1731760239331,-555.56,9.999e-05,2]
[342344776,1731760239339,-555.56,9.999e-05,2]
[342344778,1731760239348,-555.56,9.999e-05,2]
[342344780,1731760239357,-555.67090568,9.999e-05,2]
[342344782,1731760239366,-500.0,9.999e-05,2]
[342344784,1731760239375,-500.0,9.999e-05,2]
[342344787,1731760239384,-500.0,9.999e-05,2]
[342344790,1731760239394,-500.0,9.999e-05,2]
[342344793,1731760239406,-500.0,9.999e-05,2]
[342344796,1731760239415,-500.0,9.999e-05,2]
[342344799,1731760239424,-500.0,9.999e-05,2]
[342344801,1731760239434,-500.0,9.999e-05,2]
[342344803,1731760239443,-500.0,9.999e-05,2]
[342344805,1731760239452,-500.0,9.999e-05,2]
[342344807,1731760239461,-500.0,9.999e-05,2]
[342344809,1731760239470,-500.0,9.999e-05,2]
[342344811,1731760239479,-500.0,9.999e-05,2]
[342344813,1731760239487,-500.0,9.999e-05,2]
[342344815,1731760239496,-422.34617962,9.999e-05,2]
[342344817,1731760239505,-500.0,9.999e-05,2]
[342344819,1731760239515,-500.0,9.999e-05,2]
[342344821,1731760239524,-500.0,9.999e-05,2]
[342344823,1731760239533,-500.0,9.999e-05,2]
[342344826,1731760239543,-500.0,9.999e-05,2]
[342344829,1731760239551,-500.0,9.999e-05,2]
[342344832,1731760239560,-500.0,9.999e-05,2]
[342344835,1731760239569,-500.0,9.999e-05,2]
[342344838,1731760239578,-500.0,9.999e-05,2]
[342344841,1731760239587,-288.73285852,9.999e-05,2]
[342344844,1731760239597,-500.0,9.999e-05,2]
[342344847,1731760239606,-462.05869395,9.999e-05,2]
[342344850,1731760239621,-500.0,9.999e-05,2]
[342344853,1731760239630,-500.0,9.999e-05,2]
[342344856,1731760239639,-500.0,9.999e-05,2]
[342344859,1731760239648,-500.0,9.999e-05,2]
[342344862,1731760239659,-500.0,9.999e-05,2]
[342344864,1731760239668,-500.0,9.999e-05,2]
[342344868,1731760239677,-500.0,9.999e-05,2]
[342344871,1731760239687,-500.0,9.999e-05,2]
[342344874,1731760239696,-500.0,9.999e-05,2]
[342344877,1731760239705,-500.0,9.999e-05,2]
[342344880,1731760239714,-500.0,9.999e-05,2]
[342344881,1731760239722,-500.0,9.999e-05,2]
[342344884,1731760239732,-500.0,9.999e-05,2]
[342344889,1731760239741,-500.0,9.999e-05,2]
[342344891,1731760239751,-500.0,9.999e-05,2]
[342344894,1731760239760,-500.0,9.999e-05,2]
[342344896,1731760239769,-500.0,9.999e-05,2]
[342344900,1731760239778,-500.0,9.999e-05,2]
[342344902,1731760239788,-500.0,9.999e-05,2]
[342344906,1731760239798,-500.0,9.999e-05,2]
[342344908,1731760239807,-399.23393078,9.999e-05,2]
[342344911,1731760239816,-500.0,9.999e-05,2]
[342344914,1731760239826,-500.0,9.999e-05,2]
[342344917,1731760239836,-500.0,9.999e-05,2]
[342344921,1731760239846,-500.0,9.999e-05,2]
[342344925,1731760239856,-359.22528852,9.999e-05,2]
[342344927,1731760239865,-500.0,9.999e-05,2]
[342344930,1731760239874,-500.0,9.999e-05,2]
[342344933,1731760239884,-500.0,9.999e-05,2]
[342344937,1731760239894,-500.0,9.999e-05,2]
[342344939,1731760239906,-213.63700187,9.999e-05,2]
[342344943,1731760239919,-500.0,9.999e-05,2]
[342344946,1731760239929,-500.0,9.999e-05,2]
[342344949,1731760239939,-500.0,9.999e-05,2]
[342344952,1731760239949,-500.0,9.999e-05,2]
[342344955,1731760239959,-500.0,9.999e-05,2]
[342344956,1731760239968,-500.0,9.999e-05,2]
[342344959,1731760239978,-500.0,9.999e-05,2]
[342344961,1731760239990,-541.85017236,9.999e-05,2]
[342344963,1731760240000,-500.0,9.999e-05,2]
[342344966,1731760240011,-500.0,9.999e-05,2]
[342344967,1731760240020,-500.0,9.999e-05,2]
[342344970,1731760240030,-500.0,9.999e-05,2]
[342344971,1731760240039,-500.0,9.999e-05,2]
[342344973,1731760240049,-264.90759741,9.999e-05,2]
[342344975,1731760240058,-500.0,9.999e-05,2]
[342344977,1731760240067,-500.0,9.999e-05,2]
[342344979,1731760240077,-500.0,9.999e-05,2]
[342344981,1731760240086,-500.0,9.999e-05,2]
[342344983,1731760240095,-500.0,9.999e-05,2]
[342344985,1731760240104,-500.0,9.999e-05,2]
[342344987,1731760240113,-500.0,9.999e-05,2]
[342344989,1731760240122,-500.0,9.999e-05,2]
[342344991,1731760240131,-500.0,9.999e-05,2]
[342344993,1731760240141,-500.0,9.999e-05,2]
[342344995,1731760240150,-500.0,9.999e-05,2]
[342344997,1731760240163,-500.0,9.999e-05,2]
[342344999,1731760240173,-500.0,9.999e-05,2]
[342345001,1731760240182,-500.0,9.999e-05,2]
[342345003,1731760240192,-511.26500207,9.999e-05,2]
[342345005,1731760240201,-500.0,9.999e-05,2]
[342345007,1731760240210,-500.0,9.999e-05,2]
[342345009,1731760240221,-258.17959888,9.999e-05,2]
[342345011,1731760240230,-500.0,9.999e-05,2]
[342345013,1731760240239,-500.0,9.999e-05,2]
[342345015,1731760240248,-500.0,9.999e-05,2]
[342345017,1731760240257,-500.0,9.999e-05,2]
[342345019,1731760240266,-500.0,9.999e-05,2]